Cogmind - Beta 16 @@@ ROGUE MODE // 2025.10.23 @ 10:05:32 Player: Darcyisverycute Result: Destroyed by Y-54 Guardian with Flak Gun Performance ------------- Evolutions (4) 2000 Regions Visited (6) 1200 Robots Destroyed (43) 215 Value Destroyed (1276) 1276 Prototype IDs (8) 160 Alien Tech Used (0) 0 Bonus (827) 827 TOTAL SCORE: 5678 Bonus ------- High Alert Combat Kills 29 Follower Combat Kills 20 Registered with UFD 300 Met Optimus in HQ 500 Friendly Fire -22 Cogmind --------- Core Integrity 0/850 Matter 281/300 Energy 74/100 System Corruption 5% Temperature Cool (0) Movement Hovering (60) Location -6/Extension Parts ------- > --- POWER (2) -------- (None) > --- PROPULSION (5) --- Gravmag Array Cooled VTOL Module Cooled VTOL Module Cooled VTOL Module > --- UTILITY (6) ------ Improved Terrain Scanner (fused) Surveybot 17 Chip Melee Analysis Suite Advanced ECM Suite Improved Hacking Suite > --- WEAPON (2) ------- Companion Sword > --- INVENTORY (5) ---- Stasis Canceller Transmission Jammer Mapping Drone Bay (3/3) Peak State ------------ > --- POWER ------------ Light Angular Momentum Engine Light Fission Core > --- PROPULSION ------- Gravmag System Gravmag Array Gravmag Array > --- UTILITY ---------- Large Storage Unit Surveybot 17 Chip Melee Analysis Suite Transmission Jammer Layered Light Armor Plating Improved Hacking Suite > --- WEAPON ----------- Companion Sword > --- INVENTORY -------- Light Deuterium Engine Gravmag Array Cooled VTOL Module Cooled VTOL Module Cooled VTOL Module Advanced Sensor Array Improved Terrain Scanner Microactuators Microactuators Stasis Canceller Mapping Drone Bay Grenade Launcher CPS Tube CPS Tube [Rating: 70] Favorites ----------- Power Light Ion Engine Engine Light Ion Engine Power Core Light Fission Core Propulsion Light Treads Treads Light Treads Hover Unit Gravmag Array Flight Unit Cooled VTOL Module Utility Light Armor Plating Device Seismic Detector Storage High-capacity Storage Unit Processor Surveybot 17 Chip Hackware Improved Hacking Suite Protection Light Armor Plating Weapon Assault Rifle Energy Gun Small Laser Ballistic Gun Assault Rifle Launcher Grenade Launcher Special Weapon CPS Tube Slashing Weapon Companion Sword Build | -11 -10 -10 -9 -9 -6 -6 ------- Run | Yrd Mat Sub Rec Scr Fac Ext Slots Evolved 8 | . . . . . 8 . Power 1 | . . . . . 1 . Propulsion 3 | . . . . . 3 . Utility 4 | . . . . . 4 . Weapon . | . . . . . . . Parts Attached 47 | 7 1 1 5 3 23 7 Power 10 | 1 . . 1 1 5 2 Engine 7 | 1 . . 1 1 3 1 Core 3 | . . . . . 2 1 Reactor . | . . . . . . . Propulsion 11 | 2 . . 1 . 6 2 Treads 3 | 2 . . 1 . . . Leg . | . . . . . . . Wheel . | . . . . . . . Hover 5 | . . . . . 5 . Flight 3 | . . . . . 1 2 Utility 21 | 2 1 . 3 1 12 2 Device 8 | 1 . . . . 5 2 Storage 3 | 1 1 . 1 . . . Processor 2 | . . . . . 2 . Hackware 2 | . . . . . 2 . Protection 6 | . . . 2 1 3 . Artifact . | . . . . . . . Weapon 5 | 2 . 1 . 1 . 1 Energy Gun 1 | 1 . . . . . . Energy Cannon . | . . . . . . . Ballistic Gun 1 | 1 . . . . . . Ballistic Cannon . | . . . . . . . Launcher 1 | . . 1 . . . . Special Weapon 1 | . . . . . . 1 Impact Weapon . | . . . . . . . Slashing Weapon 1 | . . . . 1 . . Piercing Weapon . | . . . . . . . Special Melee Weapon . | . . . . . . . Unidentified Prototypes 2 | . . . . 1 1 . Parts Lost 17 | . . . 1 . 12 4 Power 7 | . . . 1 . 5 1 Propulsion 3 | . . . . . 3 . Utility 5 | . . . . . 4 1 Weapon 2 | . . . . . . 2 Highest Loss Streak 8 | . . . 1 . 8 4 To Critical Strikes . | . . . . . . . Average Backups 15 | 1 8 10 17 17 13 4 Power . | . 2 2 1 . . . Propulsion 1 | . 2 2 2 1 3 . Utility 10 | . 4 5 12 12 7 3 Weapon . | . . 1 1 . 1 . Tool/Special . | . . . . . . . Unused Backups 17 | . . . 1 6 8 2 Power . | . . . . . . . Propulsion 3 | . . . . 2 1 . Utility 12 | . . . 1 4 5 2 Weapon . | . . . . . . . Tool/Special 2 | . . . . . 2 . Average Slot Usage (%) 91 | . 100 100 99 92 71 76 Engine 12 | . 14 14 13 13 5 . Treads 22 | . 28 28 28 28 . . Hover 2 | . . . . . 14 6 Device 5 | . 14 14 7 . 11 12 Storage 12 | . 14 14 14 13 6 . Processor 1 | . . . . . 9 13 Hackware 1 | . . . . . 5 6 Protection 8 | . . . 6 12 3 5 Energy Gun 7 | . 14 2 9 10 . . Ballistic Gun 9 | . 14 14 14 10 . . Launcher 1 | . . 11 4 . . 1 Slashing Weapon 2 | . . . . 2 5 5 Peak Build Rating 70 | 7 8 8 10 16 70 66 Average Rating 19 | 5 7 8 9 11 60 60 On Entrance 11 | . 7 8 8 10 16 34 Avg Prop Armor Cover (%) 13 | . . . . 41 1 5 Naked Turns . | . . . . . . . Heaviest Build 49 | 12 27 29 49 49 45 22 Greatest Support 53 | 40 40 40 40 40 53 22 Greatest Overweight (x) 3 | . . . 1 1 1 3 Average Overweight (x) . | . . . . . . . Largest Inventory Capacity 20 | 8 15 15 20 20 15 15 Average Capacity 17 | 7 14 15 19 18 15 5 Most Carried 20 | 6 10 12 20 20 15 10 Average Carried 15 | 1 8 10 18 17 14 4 Final Capacity 20 | 8 15 15 20 15 15 5 Final Carried 19 | 6 10 12 19 15 11 3 Class Distribution -------------------- 99% | Mutant Dominant Class ---------------- Mutant | -10/Materials Mutant | -10/Subcaves Mutant | -9/Recycling Mutant | -9/Scraptown Mutant | -6/Factory Mutant | -6/Extension Resources | -11 -10 -10 -9 -9 -6 -6 ----------- Run | Yrd Mat Sub Rec Scr Fac Ext Matter Collected 1094 | 300 10 157 135 . 362 130 Remotely . | . . . . . . . Salvage Created 1793 | 151 . 12 310 . 1046 274 Parts 92 | 10 . . 13 . 58 11 Haulers Intercepted 1 | . . . . . 1 . Recyclers Shooed . | . . . . . . . Parts Field Recycled . | . . . . . . . Retrieved Matter . | . . . . . . . Parts Self-Destructed 15 | . . 15 . . . . Prevented . | . . . . . . . Parts Restored . | . . . . . . . Kills | -11 -10 -10 -9 -9 -6 -6 ------- Run | Yrd Mat Sub Rec Scr Fac Ext Combat Hostiles Destroyed 25 | . . 1 4 . 18 2 Melee 13 | . . . . . 13 . Guns 5 | . . 1 4 . . . AOE 7 | . . . . . 5 2 Classes Destroyed 11 | 2 . 2 1 . 6 . Worker 3 | . . . . . 3 . Tunneler 5 | 4 . . . . . 1 Hauler 1 | . . . . . 1 . Recycler 4 | 1 . . 1 . . 2 Operator 3 | . . . . . 3 . Turret 2 | . . 2 . . . . Swarmer 8 | . . 1 . . 5 2 Grunt 8 | . . . . . 8 . Sentry 7 | . . . 4 . 3 . Hunter 1 | . . . . . 1 . Programmer 1 | . . . . . 1 . Best Kill Streak 5 | 3 . 2 3 . 5 2 Combat Bots Only 4 | . . 1 2 . 4 2 Max Kills in Single Turn 2 | 2 . 1 1 . 2 1 Gunslinging . | . . . . . . . Exploded 2 | . . . . . 2 1 Melee 1 | . . . . . 1 . Uniques/NPCs Destroyed . | . . . . . . . Combat | -11 -10 -10 -9 -9 -6 -6 -------- Run | Yrd Mat Sub Rec Scr Fac Ext Hostile Shots Fired 389 | . . 15 24 . 225 125 Missed 148 | . . 8 2 . 76 62 Hits 241 | . . 7 22 . 149 63 Melee 1 | . . . . . 1 . Projectile 240 | . . 7 22 . 148 63 AOE 4 | . . . . . 4 . Critical Strikes 6 | . . . 1 . 5 . Damage Taken 3064 | . . 42 311 . 2224 487 Core 890 | . . 9 28 . 726 127 Absorbed by Shields . | . . . . . . . Redirected to Shielding 210 | . . . . . 210 . Core Remaining (%) 92 | 100 . . . 85 . . Volleys Fired 55 | 10 . 20 16 . 3 6 Largest 2 | 2 . 2 2 . 1 1 Hottest 60 | 60 . 60 60 . 30 30 Shots Fired 84 | 20 . 23 32 . 3 6 Gun 58 | 20 . 6 32 . . . Cannon . | . . . . . . . Launcher 25 | . . 17 . . 3 5 Special 1 | . . . . . . 1 Kinetic 29 | 10 . 3 16 . . . Thermal 29 | 10 . 3 16 . . . Explosive 25 | . . 17 . . 3 5 Electromagnetic . | . . . . . . . Robot Hit Streak 8 | 6 . 7 8 . . 1 Robot Miss Streak 4 | 1 . 4 2 . . 1 Penetration Max . | . . . . . . . Secondary Targets . | . . . . . . . Shots Hit Robots 113 | 13 . 1 25 . 61 13 Core Hits 67 | 6 . 10 11 . 31 9 Critical Kills . | . . . . . . . Critical Parts Destroyed . | . . . . . . . Critical Strikes 4 | . . . . . 4 . Melee Attacks 119 | . . . . . 106 13 Impact . | . . . . . . . Slashing 119 | . . . . . 106 13 Piercing . | . . . . . . . Sneak Attacks 10 | . . . . . 7 3 Combat Hostiles 1 | . . . . . 1 . Follow-up Attacks 1 | . . . . . . 1 Damage Inflicted 4629 | 169 . 268 306 . 3119 767 Guns 508 | 169 . 33 306 . . . Cannons . | . . . . . . . Explosions 620 | . . 235 . . 241 144 Melee 3501 | . . . . . 2878 623 Ramming . | . . . . . . . Kinetic 278 | 105 . 10 163 . . . Thermal 230 | 64 . 23 143 . . . Explosive 620 | . . 235 . . 241 144 Electromagnetic . | . . . . . . . Impact . | . . . . . . . Slashing 3501 | . . . . . 2878 623 Piercing . | . . . . . . . Highest Corruption 5 | . . . . . 5 5 Average Corruption 4 | . . . . . 4 5 Corruption Purged . | . . . . . . . Corruption Blocked . | . . . . . . . Effects 20 | . . . . . 13 7 Message Errors 4 | . . . . . 3 1 Matter Fused 3 | . . . . . 2 1 Heat Flow Errors 2 | . . . . . 1 1 Energy Discharges 1 | . . . . . 1 . Parts Fused 1 | . . . . . . 1 Data Loss (minor) 8 | . . . . . 5 3 Alerts 1 | . . . . . 1 . Overload Shots . | . . . . . . . Overflow Damage 272 | . . 18 . . 176 78 Projectiles . | . . . . . . . Explosions 39 | . . 18 . . 21 . Melee 233 | . . . . . 155 78 Knockbacks . | . . . . . . . Impact . | . . . . . . . Kinetic . | . . . . . . . Secondary . | . . . . . . . Self-Inflicted Damage 59 | . . . . . 59 . Shots 2 | . . . . . 2 . Rammed . | . . . . . . . Targets Rammed . | . . . . . . . Kicked . | . . . . . . . Crushed . | . . . . . . . Highest Temperature 266 | . . . 135 . 149 266 Average Temperature 64 | . . . 54 . 46 128 Received Heat Transfer 843 | . . 36 117 . 558 132 Siege Activations . | . . . . . . . Martial Activations . | . . . . . . . Shielding Activations . | . . . . . . . Robots Disrupted . | . . . . . . . Combat Hostiles . | . . . . . . . Robots Corrupted . | . . . . . . . Combat Hostiles . | . . . . . . . Parts Fried . | . . . . . . . Impact Corruptions . | . . . . . . . Robots Melted . | . . . . . . . Combat Hostiles . | . . . . . . . Parts Melted 1 | . . . . . 1 . Heat Transferred 525 | 150 . 50 325 . . . Parts Sabotaged . | . . . . . . . Parts Stolen . | . . . . . . . Parts Stripped . | . . . . . . . Power Chain Reactions . | . . . . . . . Alert | -11 -10 -10 -9 -9 -6 -6 ------- Run | Yrd Mat Sub Rec Scr Fac Ext Maximum Alert Level 2 | . . . . . 2 1 Low Security (%) 88 | 100 100 . 100 . 75 69 Level 1 9 | . . . . . 17 30 Level 2 2 | . . . . . 6 . Level 3 . | . . . . . . . Level 4 . | . . . . . . . Level 5 . | . . . . . . . High Security . | . . . . . . . Max Security . | . . . . . . . Peak Influence 431 | 10 7 . 129 . 431 264 Initial 182 | . . . 129 . . 182 Average 77 | 1 . . 19 . 140 188 Influence Increases 1723 | 25 7 495 138 . 840 218 Destroy 0b10 Robot/C 580 | . . 60 80 . 360 80 Destroy 0b10 Robot/NC 80 | 25 . . 5 . 35 15 Destroy Leader 92 | . . . . . 72 20 Allied During Kill 1 | . . . . . . 1 Successful Hack 137 | . 7 . 23 . 99 8 Select Force Hacks 30 | . . . 30 . . . Destroy Structure 53 | . . . . . 34 19 Partial Spotted 45 | . . . . . 15 30 Lose Combat Pursuer 705 | . . 435 . . 225 45 Influence Decreases 1533 | 25 7 224 409 . 467 401 Entered New Map 333 | . . . 142 . . 191 Time Decay 1000 | 25 7 224 267 . 347 130 Lost Part 160 | . . . . . 120 40 Lost Ally 40 | . . . . . . 40 Squads Dispatched 10 | . . . . . 10 . Investigation 4 | . . . . . 4 . Extermination 2 | . . . . . 2 . Reinforcement 4 | . . . . . 4 . Assault . | . . . . . . . Garrison . | . . . . . . . Intercept . | . . . . . . . Searches Triggered . | . . . . . . . Construction Impeded . | . . . . . . . Haulers Reinforced 1 | . . . . . 1 . Active Scanning Responses . | . . . . . . . Cargo Convoy Interrupts . | . . . . . . . Stealth | -11 -10 -10 -9 -9 -6 -6 --------- Run | Yrd Mat Sub Rec Scr Fac Ext Distress Signals . | . . . . . . . Communications Jammed 15 | . . . . . 15 . Distress Signals 15 | . . . . . 15 . Times Spotted 66 | . . 10 4 . 43 9 Peak Tracking Total 7 | . . 2 2 . 7 6 Tactical Retreats 12 | . . 4 . . 7 1 Traps | -11 -10 -10 -9 -9 -6 -6 ------- Run | Yrd Mat Sub Rec Scr Fac Ext Traps Triggered 2 | . . . . . 2 . Indirectly . | . . . . . . . Trap Hack Attempts . | . . . . . . . Triggered . | . . . . . . . Disarmed . | . . . . . . . Reprogrammed . | . . . . . . . Reused . | . . . . . . . Traps Extracted . | . . . . . . . Installed . | . . . . . . . Triggered . | . . . . . . . Machines | -11 -10 -10 -9 -9 -6 -6 ---------- Run | Yrd Mat Sub Rec Scr Fac Ext Machines Disabled 4 | . . 3 . . . 1 Max in Single Turn 1 | . . 1 . . . 1 Garrison Access 1 | . . . . . 1 . Machines Repaired . | . . . . . . . Machines Dismantled . | . . . . . . . Machines Sabotaged . | . . . . . . . Overloaded Fab Kills . | . . . . . . . Hacking | -11 -10 -10 -9 -9 -6 -6 --------- Run | Yrd Mat Sub Rec Scr Fac Ext Machines Accessed 36 | . 2 . 7 6 18 3 Terminals 21 | . 2 . 6 . 10 3 Fabricators 1 | . . . . . 1 . Repair Stations . | . . . . . . . Recycling Units 5 | . . . 1 . 4 . Scanalyzers 1 | . . . . . 1 . Garrison Access 2 | . . . . . 2 . Total Hacks 113 | . 5 . 18 32 52 6 Successful 77 | . 3 . 11 32 28 3 Failed 35 | . 2 . 7 . 23 3 Catastrophic 5 | . . . 2 . 3 . Database Lockouts 1 | . . . . . 1 . Manual 59 | . 3 . 17 . 37 2 Terminals 64 | . 5 . 17 . 36 6 Fabricators 5 | . . . . . 5 . Repair Stations . | . . . . . . . Recycling Units 6 | . . . 1 . 5 . Scanalyzers 2 | . . . . . 2 . Garrison Access 4 | . . . . . 4 . Terminal Hacks 41 | . 1 . . 32 6 2 Record 23 | . . . . 23 . . Robot Analysis 8 | . . . . 7 1 . Open Door 3 | . . . . 1 1 1 Branch Access Points 1 | . 1 . . . . . Terminal Index 1 | . . . . . 1 . Recycling Unit Index 1 | . . . . . 1 . Alert Level 1 | . . . . . . 1 Recall Extermination 1 | . . . . . 1 . Recall Reinforcements 1 | . . . . . 1 . Proto ID Catalog 1 | . . . . 1 . . Fabricator Hacks . | . . . . . . . Repair Station Hacks . | . . . . . . . Recycling Unit Hacks . | . . . . . . . Scanalyzer 1 | . . . . . 1 . Retrieve Study 1 | . . . . . 1 . Garrison Access Hacks 1 | . . . . . 1 . Seal Access 1 | . . . . . 1 . Unauthorized Hacks 34 | . 2 . 11 . 20 1 Terminals 26 | . 2 . 10 . 13 1 Track 2 | . . . . . 2 . Botnet 10 | . 1 . 5 . 3 1 Disrupt 3 | . . . . . 3 . Operators 1 | . . . . . 1 . Skim 10 | . 1 . 5 . 4 . Fabricators 3 | . . . . . 3 . Report 1 | . . . . . 1 . Fabnet 1 | . . . . . 1 . Haulers 1 | . . . . . 1 . Repair Stations . | . . . . . . . Recycling Units 5 | . . . 1 . 4 . Tunnel 1 | . . . 1 . . . Fedlink 4 | . . . . . 4 . Scanalyzers . | . . . . . . . Garrison Access . | . . . . . . . Data Cores Recovered 1 | . . . . . 1 . Used . | . . . . . . . Hacking Detections 21 | . 1 . 6 . 12 2 Full Trace Events . | . . . . . . . Feedback Events . | . . . . . . . Feedback Blocked . | . . . . . . . Robot Schematics Acquired . | . . . . . . . Robots Built . | . . . . . . . Authchips . | . . . . . . . Time . | . . . . . . . Total Robot Build Rating . | . . . . . . . Part Schematics Acquired . | . . . . . . . Parts Built . | . . . . . . . Authchips . | . . . . . . . Time . | . . . . . . . Total Part Build Rating . | . . . . . . . Part Studies Acquired 1 | . . . . . 1 . Parts Repaired . | . . . . . . . Time . | . . . . . . . Parts Recycled . | . . . . . . . Recycled Matter . | . . . . . . . Retrieved Matter . | . . . . . . . Retrieved Components . | . . . . . . . Parts Scanalyzed . | . . . . . . . Part Schematics Acquired . | . . . . . . . Parts Damaged . | . . . . . . . Bothacking | -11 -10 -10 -9 -9 -6 -6 ------------ Run | Yrd Mat Sub Rec Scr Fac Ext Used RIF Installer . | . . . . . . . Robots Hacked . | . . . . . . . Non-combat . | . . . . . . . Combat . | . . . . . . . Robot Hacks Applied . | . . . . . . . Relay Couplers Released . | . . . . . . . Fabnet Peak Effective % . | . . . . . . . Robots Rewired . | . . . . . . . Allies Hacked . | . . . . . . . Hacks Repelled . | . . . . . . . Allies | -11 -10 -10 -9 -9 -6 -6 -------- Run | Yrd Mat Sub Rec Scr Fac Ext Total Allies 2 | . . . . . . 2 Largest Group 2 | . . . . . . 2 Highest-Rated Group 51 | . . . . . . 51 Highest-Rated Ally 31 | . . . . . . 31 Total Orders . | . . . . . . . Ally Attacks 4 | . . . . . . 4 Total Damage 113 | . . . . . . 113 Kills 2 | . . . . . . 2 Allies Corrupted . | . . . . . . . Allies Melted . | . . . . . . . Intel | -11 -10 -10 -9 -9 -6 -6 ------- Run | Yrd Mat Sub Rec Scr Fac Ext Active Infowar (turns) 2275 | 51 131 552 660 . 861 20 Terrain 532 | . . . . . 516 16 Seismic 1604 | 51 131 552 660 . 210 . Jamming 443 | . . . . . 443 . ECM 4 | . . . . . . 4 Robot Analysis Total 8 | . . . . 7 1 . Derelict Logs Recovered 3 | . . 2 . 1 . . Drone Launches . | . . . . . . . Drone Recoveries . | . . . . . . . Exploration | -11 -10 -10 -9 -9 -6 -6 ------------- Run | Yrd Mat Sub Rec Scr Fac Ext Turns Passed 6863 | 141 131 552 1240 3542 991 266 Spaces Moved 4045 | 62 79 315 388 1741 1184 276 Core 166 | 4 . . . 153 . 9 Treads 2438 | 58 79 315 388 1588 10 . Legs . | . . . . . . . Wheels . | . . . . . . . Hover 1394 | . . . . . 1174 220 Flight 47 | . . . . . . 47 Fastest Speed 29 | 50 160 160 160 50 52 29 Average Speed 146 | 152 160 160 226 201 56 59 Slowest Speed 240 | 160 160 160 240 240 160 200 Overloaded Moves . | . . . . . . . Propulsion Burnouts . | . . . . . . . Robots Hopped . | . . . . . . . Potential Cave-ins . | . . . . . . . Cave-ins Triggered . | . . . . . . . Exploration Rate (%) 38 | 4 24 24 76 86 40 16 Regions Visited 6 Branch Regions 4 Pre-discovered Areas 8 | . . 1 2 4 1 . Known Exits Taken 2 | . . . . 1 1 . Unknown Exits Taken 4 | 1 1 1 1 . . . Scrap Searched 8 | . . . . 8 . . Spaces Dug 54 | . . . . . 38 16 Terrain Destroyed 92 | . . 23 . . 38 31 Melee 22 | . . . . . 21 1 Projectile . | . . . . . . . AOE 70 | . . 23 . . 17 30 Terrain Rammed . | . . . . . . . Walls Destroyed . | . . . . . . . Machines Disabled . | . . . . . . . Actions | -11 -10 -10 -9 -9 -6 -6 --------- Run | Yrd Mat Sub Rec Scr Fac Ext Total 4747 | 85 84 340 717 1784 1382 355 Wait 377 | 1 . 4 301 . 23 48 Move 4039 | 61 78 314 387 1740 1183 276 Hop . | . . . . . . . Pick Up 56 | 6 4 1 6 24 15 . Fast Attach 24 | 7 . . . 3 10 4 Attach 18 | . . . 1 1 10 6 Detach 3 | . . . . . 3 . Swap 20 | . 1 1 5 . 12 1 Drop 37 | . 1 . 1 16 17 2 Fire 55 | 10 . 20 16 . 3 6 Melee 118 | . . . . . 106 12 Ram . | . . . . . . . Kick . | . . . . . . . Crush . | . . . . . . . Escape Stasis . | . . . . . . . Rewire . | . . . . . . . Trap . | . . . . . . . Miscellaneous . | . . . . . . . Route ------- -11/Scrapyard -10/Materials (discovered 2 exits: *Min / [*Sub]) -10/Subcaves -9/Recycling (discovered 2 exits: Fac / *Scr) -9/Scraptown (discovered 2 exits: *Fac x2) -6/Factory (discovered 8 exits: *Fac x4 / Low x2 / *Ext x2) -6/Extension History --------- Turn | Location | Event 3 | -11/Scrapyard | Discovered new exit (range 15) 142 | -11/Scrapyard | Entered Materials 143 | -10/Materials | Met a group of wandering Federalists 168 | -10/Materials | Identified exit to Mines 262 | -10/Materials | Discovered new exit (range 8) 273 | -10/Materials | Entered Subcaves 274 | -10/Subcaves | Continued accompanying wandering Federalists (4) 280 | -10/Subcaves | Learned location of Storage (-9) 287 | -10/Subcaves | Shifting Twisted Machinery released Flamer 306 | -10/Subcaves | Build established: Mutant 361 | -10/Subcaves | Discovered new exit (range 12) 392 | -10/Subcaves | Lost 4 allies 674 | -10/Subcaves | Learned location of 2 exits from Materials 686 | -10/Subcaves | Shifting Twisted Machinery released Piercing Trap 709 | -10/Subcaves | Shifting Twisted Machinery released Scrap Shield 825 | -10/Subcaves | Entered Recycling 1624 | -9/Recycling | Learned Materials garrison access intel 1663 | -9/Recycling | Scanned before Scraplab entrance 1696 | -9/Recycling | Entered Scraplab 1698 | -9/Recycling | Learned 2 Storage zone layouts 1728 | -9/Recycling | Discovered new exit (range 3) 1762 | -9/Recycling | Learned Storage stockpile data 1814 | -9/Recycling | Identified exit to Factory 1855 | -9/Recycling | Learned Storage stockpile data 1885 | -9/Recycling | Learned location of 1 exit from Recycling 1927 | -9/Recycling | Learned 2 Storage zone layouts 2039 | -9/Recycling | Learned 4 Materials zone layouts 2065 | -9/Recycling | Entered Scraptown 2447 | -9/Scraptown | Discovered new exit (range 13) 2586 | -9/Scraptown | Scanned Subdweller tech in exchange for log data 2594 | -9/Scraptown | Learned location of 1 exit from Factory 2634 | -9/Scraptown | Heard Great Nut preacher, LISTEN AND RECITE! 2649 | -9/Scraptown | Visited Bundlers 2842 | -9/Scraptown | Visited SPCMW 2924 | -9/Scraptown | Visited Symbiants 3233 | -9/Scraptown | Visited Awakened 3310 | -9/Scraptown | Visited UFD Registry 3343 | -9/Scraptown | Registered with UFD as "Cogcycle" 3735 | -9/Scraptown | Visited Analyses Database 3811 | -9/Scraptown | Visited Cartography Club 3862 | -9/Scraptown | Visited Supply Room 3958 | -9/Scraptown | Visited Chapter 10 4001 | -9/Scraptown | Visited Scrap Suit Storage 4092 | -9/Scraptown | Visited Research Penetration Think Tank 4152 | -9/Scraptown | Visited Sword Containment 4243 | -9/Scraptown | Delivered Scrap Shield to a Scientist 4517 | -9/Scraptown | Visited Science Guys 4598 | -9/Scraptown | Visited Junk Cannon Lab 4794 | -9/Scraptown | Found Surveybot 17 Chip 4818 | -9/Scraptown | Learned location of Upper Caves (-5) 4818 | -9/Scraptown | Learned location of Archives (-6) 4818 | -9/Scraptown | Learned 8 Factory zone layouts 4818 | -9/Scraptown | Learned 12 Factory zone layouts 4818 | -9/Scraptown | Learned 16 Factory zone layouts 4818 | -9/Scraptown | Learned 4 Storage zone layouts 4818 | -9/Scraptown | Learned 8 Lower Caves zone layouts 4818 | -9/Scraptown | Learned 12 Lower Caves zone layouts 4818 | -9/Scraptown | Learned 24 Upper Caves zone layouts 4818 | -9/Scraptown | Learned 24 Proximity Caves zone layouts 4818 | -9/Scraptown | Learned Research emergency access door positions 4818 | -9/Scraptown | Learned location of 1 exit from Factory 4818 | -9/Scraptown | Learned location of 2 exits from Research 4818 | -9/Scraptown | Learned location of 1 exit from Upper Caves 4818 | -9/Scraptown | Identified exit to Factory 5520 | -9/Scraptown | Met Optimus 5520 | -9/Scraptown | Accepted into 0bPrime 5607 | -9/Scraptown | Entered Factory 5607 | -6/Factory | Evolved 8 slots: Power x1, Propulsion x3, Utility x4 5608 | -6/Factory | Identified exit to Factory 5609 | -6/Factory | Identified exit to Extension 5610 | -6/Factory | Identified exit to Lower Caves 5677 | -6/Factory | Spotted B-75 Beast 5832 | -6/Factory | Loaded intel: 8 recycling unit locations 5857 | -6/Factory | Central database locked down 6295 | -6/Factory | Learned location of Protoforge (-2) 6461 | -6/Factory | Allied Derelicts emerged from ambush trap array 6475 | -6/Factory | Core integrity fell below 50% 6532 | -6/Factory | Lost 3 allies 6562 | -6/Factory | Core integrity fell below 20% 6598 | -6/Factory | Entered Extension 6600 | -6/Extension | Lost 8 parts (2p2n4u) 6718 | -6/Extension | Rescued a captive Derelict 6720 | -6/Extension | Rescued a captive Derelict 6845 | -6/Extension | Attached CPS modules to Y-54 Guardian. 6864 | -6/Extension | Destroyed by Y-54 Guardian with Flak Gun Last Messages --------------- 06829_ A-15 Conveyor exits Transfer Station. 06830_ R-10 Processor enters Transfer Station. 06833_ Grenade Launcher destroyed. 06836_ The unstable cave ceiling collapses. 06837_ T-07 Excavator enters Transfer Station. 06839_ K-01 Serf enters Transfer Station. 06840_ The unstable cave ceiling collapses. 06841_ K-01 Serf enters Transfer Station. 06845_ CPS modules attach to Y-54 Guardian. 06846_ CPS Tube destroyed. 06849_ U-05 Engineer enters Transfer Station. 06854_ Lgt. Fission Core destroyed. 06858_ Lyr. Light Armor Plating destroyed. 06859_ Companion Sword surprise attacks Y-54 Guardian. Companion Sword: "They can tag team, but so can we! I mean me." 06861_ Destroyed Gatling Laser. 06862_ U-05 Engineer exits Transfer Station. 06862_ R-10 Processor exits Transfer Station. Map ----- +----------------------------------------------------+ | ###"T ^"" * #??????? | | ??#""" "" ###T###??????? | | ### "" "" #?####???????? | | ###### ^ "" ##?##????????? | | ###??#! "" ##??#????????? | | ?###?# " ##?#?????????? | | ###### ###??????????? | | ###### ???? | | ?#?### ###"T"############????? | | ###?## ###"""###?###?#???????? | | ??##?# #?########?####???????? | | ###??# ##?############???????? | | ###### ##########?###????????? | | ######=###?###?####??#???????? | | ####?#!#####?#######?????????? | | ######!#########?###?#???????? | | ######% ##?###?##?###????????? | | ##### | ######?#######???????? | | #### ###???#####?##???????? | | #### #########?###??????? | | ?### ####???####?##??????? | | ??## #######?##?###?????? | | #### # ######?####??????? | | ## "" ####?####?????????? | | ## " " ################### | | ## @ | | ## YY = | | ?# ! %= | | ## ! | | ?# Ru u | | ## R#################?? | | ## k ####??#?#??#??????? | | ?###" k"####???##?#??#??????? | | ##?#" "#??####????#????????? | | ####"""""####???#???#????????? | | #??#########?#????#??????????? | | #??##???#?#???#?#??#?????????? | | ##?????#?#?????#??##?????????? | | | | | | | | | | | | | | | | | | | | | | | | | +----------------------------------------------------+ Best States ------------- Heat Dissipation 37 Energy Generation 31 Energy Capacity 350 Matter Stores 300 Matter Capacity 300 Sight Range 16 Terrain Scan Range 16 Terrain Scan Density 1210 Jamming Range 12 Armor Coverage 150 Propulsion Shielding 66 Melee Speed Boost 40 Evasion (%) 58 Melee Accuracy 5 Recoil Reduction 2 Offensive Hacking 22 Authchip Count 4 Item Schematics ----------------- None Robot Schematics ------------------ None Fabricated ------------ Nothing Repaired ---------- Nothing Studied --------- Gravmag Array | -6/Factory | Hacked Alien Tech Used ----------------- None Achievements -------------- Civilization 2243 Link The Feds Physics Hates This One Trick You May Approach The Wall Challenges ------------ None Game ------ Seed DisposableCouplerObliterator Manual? 0 Play Time 00:51:45 Cumulative 316.6 hours Start 2025.10.23 @ 09:14:38 End 2025.10.23 @ 10:05:32 Sessions 1 Manual Loads 0 Difficulty Rogue Special Mode None Game No. 165 Rogue 157 Adventurer 8 Explorer 0 Win Type - Total 20 Types 12/0/3/2/0/0/1/0/1/1 Lore% 88 Gallery% 86 Achievement% 55 Wizard Run 0 Options --------- Layout 2 ASCII 0 Keyboard 1 Movement Numpad Keybinds 1 Fullscreen 1 Font 24/Smallcaps Map View 50x44 Zoom Use 0% Tactical HUD 1 Map Filters SATURATION(78)|BRIGHTNESS(125) Filters SHIFT_HUE(220) Steam 1 RUN: bae327d9-1431-4441-813e-585bb1906617